fUSD/lending_fUSD_20250427
["ID","MTS","AMOUNT","RATE_DAILY","PERIOD"]
[359176219,1745773848365,-615.21024057,0.00019999,2]
[359176220,1745773848377,-500.0,0.00019999,2]
[359176221,1745773848388,-480.0,0.00019999,2]
[359176222,1745773848399,-591.29,0.00019999,2]
[359176223,1745773848409,-510.93,0.00019999,2]
[359176224,1745773848420,-500.0,0.00019999,2]
[359176225,1745773848432,-570.04,0.00019999,2]
[359176226,1745773848443,-500.0,0.00019999,2]
[359176227,1745773848454,-625.0,0.00019999,2]
[359176228,1745773848465,-480.0,0.00019999,2]
[359176229,1745773848475,-499.12,0.00019999,2]
[359176230,1745773848485,-480.0,0.00019999,2]
[359176231,1745773848496,-402.98,0.00019999,2]
[359176232,1745773848506,-480.0,0.00019999,2]
[359176233,1745773848518,-317.02,0.00019999,2]
[359176234,1745773848531,-480.0,0.00019999,2]
[359176235,1745773848544,-401.92,0.00019999,2]
[359176236,1745773848554,-500.0,0.00019999,2]
[359176237,1745773848564,-480.0,0.00019999,2]
[359176238,1745773848574,-173.44,0.00019999,2]
[359176239,1745773848584,-500.0,0.00019999,2]
[359176240,1745773848595,-500.0,0.00019999,2]
[359176241,1745773848605,-500.0,0.00019999,2]
[359176242,1745773848616,-500.0,0.00019999,2]
[359176243,1745773848626,-500.0,0.00019999,2]
[359176244,1745773848638,-480.0,0.00019999,2]
[359176245,1745773848651,-500.0,0.00019999,2]
[359176246,1745773848662,-409.04,0.00019999,2]
[359176247,1745773848673,-173.35033278,0.00019999,2]
[359176248,1745773848684,-480.0,0.00019999,2]
[359176249,1745773848695,-321.35,0.00019999,2]
[359176250,1745773848706,-500.0,0.00019999,2]
[359176251,1745773848716,-257.36091335,0.00019999,2]
[359176252,1745773848726,-480.0,0.00019999,2]
[359176253,1745773848736,-313.45,0.00019999,2]
[359176254,1745773848747,-500.0,0.00019999,2]
[359176255,1745773848757,-500.0,0.00019999,2]
[359176256,1745773848768,-584.17,0.00019999,2]
[359176257,1745773848778,-500.0,0.00019999,2]
[359176258,1745773848788,-500.0,0.00019999,2]
[359176259,1745773848799,-500.0,0.00019999,2]
[359176260,1745773848809,-596.75,0.00019999,2]
[359176261,1745773848819,-500.0,0.00019999,2]
[359176262,1745773848829,-500.0,0.00019999,2]
[359176263,1745773848839,-500.0,0.00019999,2]
[359176264,1745773848850,-500.0,0.00019999,2]
[359176265,1745773848860,-519.52,0.00019999,2]
[359176266,1745773848870,-538.50261853,0.00019999,2]
[359176267,1745773848881,-480.0,0.00019999,2]
[359176268,1745773848891,-480.0,0.00019999,2]
[359176269,1745773848902,-480.0,0.00019999,2]
[359176270,1745773848912,-480.0,0.00019999,2]
[359176271,1745773848922,-480.0,0.00019999,2]
[359176272,1745773848932,-254.69,0.00019999,2]
[359176273,1745773848943,-480.0,0.00019999,2]
[359176274,1745773848959,-480.0,0.00019999,2]
[359176275,1745773848969,-524.26,0.00019999,2]
[359176276,1745773848979,-480.0,0.00019999,2]
[359176277,1745773848993,-500.0,0.00019999,2]
[359176278,1745773849003,-480.0,0.00019999,2]
[359176279,1745773849013,-480.0,0.00019999,2]
[359176280,1745773849024,-500.0,0.00019999,2]
[359176281,1745773849036,-480.0,0.00019999,2]
[359176282,1745773849046,-480.0,0.00019999,2]
[359176283,1745773849057,-480.0,0.00019999,2]
[359176284,1745773849067,-500.0,0.00019999,2]
[359176285,1745773849078,-480.0,0.00019999,2]
[359176286,1745773849088,-480.0,0.00019999,2]
[359176287,1745773849098,-500.0,0.00019999,2]
[359176288,1745773849109,-480.0,0.00019999,2]
[359176289,1745773849120,-480.0,0.00019999,2]
[359176290,1745773849130,-153.07171092,0.00019999,2]
[359176291,1745773849141,-334.43553343,0.00019999,2]
[359176292,1745773849152,-523.73,0.00019999,2]
[359176293,1745773849163,-500.0,0.00019999,2]
[359176294,1745773849173,-500.0,0.00019999,2]
[359176295,1745773849183,-480.0,0.00019999,2]
[359176296,1745773849194,-480.0,0.00019999,2]
[359176297,1745773849205,-154.74,0.00019999,2]
[359176298,1745773849217,-480.0,0.00019999,2]
[359176299,1745773849228,-589.54,0.00019999,2]
[359176300,1745773849238,-500.0,0.00019999,2]
[359176301,1745773849249,-500.0,0.00019999,2]
[359176302,1745773849261,-500.0,0.00019999,2]
[359176303,1745773849272,-500.0,0.00019999,2]
[359176304,1745773849282,-508.31822487,0.00019999,2]
[359176305,1745773849298,-500.0,0.00019999,2]
[359176306,1745773849310,-480.0,0.00019999,2]
[359176307,1745773849323,-480.0,0.00019999,2]
[359176308,1745773849334,-480.0,0.00019999,2]
[359176309,1745773849346,-480.0,0.00019999,2]
[359176310,1745773849357,-480.0,0.00019999,2]
[359176311,1745773849369,-480.0,0.00019999,2]
[359176312,1745773849381,-480.0,0.00019999,2]
[359176313,1745773849393,-507.63,0.00019999,2]
[359176314,1745773849404,-480.0,0.00019999,2]
[359176315,1745773849415,-480.0,0.00019999,2]
[359176316,1745773849426,-480.0,0.00019999,2]
[359176317,1745773849438,-480.0,0.00019999,2]
[359176318,1745773849449,-480.0,0.00019999,2]
[359176319,1745773849460,-480.0,0.00019999,2]
[359176320,1745773849471,-480.0,0.00019999,2]
[359176321,1745773849482,-500.0,0.00019999,2]
[359176322,1745773849493,-560.54,0.00019999,2]
[359176323,1745773849503,-480.0,0.00019999,2]
[359176324,1745773849515,-480.0,0.00019999,2]
[359176325,1745773849525,-480.0,0.00019999,2]
[359176326,1745773849536,-480.0,0.00019999,2]
[359176327,1745773849547,-480.0,0.00019999,2]
[359176328,1745773849558,-480.0,0.00019999,2]
[359176329,1745773849569,-480.0,0.00019999,2]
[359176330,1745773849580,-500.0,0.00019999,2]
[359176331,1745773849591,-480.0,0.00019999,2]
[359176332,1745773849602,-480.0,0.00019999,2]
[359176333,1745773849613,-480.0,0.00019999,2]
[359176334,1745773849623,-470.43198747,0.00019999,2]
[359176335,1745773849634,-505.8946513,0.00019999,2]
[359176336,1745773849644,-500.0,0.00019999,2]
[359176337,1745773849655,-500.0,0.00019999,2]
[359176338,1745773849666,-500.0,0.00019999,2]
[359176339,1745773849676,-480.0,0.00019999,2]
[359176340,1745773849687,-286.4,0.00019999,2]
[359176341,1745773849697,-480.0,0.00019999,2]
[359176342,1745773849707,-192.16,0.00019999,2]
[359176343,1745773849717,-480.0,0.00019999,2]
[359176344,1745773849728,-480.0,0.00019999,2]
[359176345,1745773849740,-157.03,0.00019999,2]
[359176346,1745773849750,-500.0,0.00019999,2]
[359176347,1745773849760,-500.0,0.00019999,2]
[359176348,1745773849771,-500.0,0.00019999,2]
[359176349,1745773849781,-480.0,0.00019999,2]
[359176350,1745773849791,-480.0,0.00019999,2]
[359176351,1745773849802,-154.71,0.00019999,2]
[359176352,1745773849812,-167.6971719,0.00019999,2]
[359176353,1745773849822,-18196.56,0.00019999,2]
[359176354,1745773849833,-18196.56,0.00019999,2]
[359176355,1745773849843,-480.0,0.00019999,2]
[359176356,1745773849854,-18196.56,0.00019999,2]
[359176357,1745773849864,-523.55,0.00019999,2]
[359176358,1745773849874,-18196.56,0.00019999,2]
[359176359,1745773849884,-453.8579603,0.00019999,2]
[359176360,1745773849913,-368.16999,0.00019999,2]
[359176361,1745773849926,-3191.39276772,0.00019999,2]
[359176362,1745773849938,-414.23232043,0.00019999,2]
[359176363,1745773849953,-1691.63592498,0.00019999,2]
[359176364,1745773849971,-480.0,0.00019998,2]
[359176365,1745773849982,-1399.26,0.00019999,2]
[359176366,1745773850001,-480.0,0.00019998,2]
[359176367,1745773850012,-621.075001,0.00019999,2]
[359176368,1745773850056,1000.0,0.00018951,2]
[359176369,1745773850208,-480.0,0.00019998,2]
[359176370,1745773850218,-10056.93603557,0.00019999,2]
[359176371,1745773850228,-18196.56,0.00019999,2]
[359176372,1745773850237,-18196.56,0.00019999,2]
[359176373,1745773850247,-18196.56,0.00019999,2]
[359176374,1745773850257,-18196.56,0.00019999,2]
[359176375,1745773850268,-18196.56,0.00019999,2]
[359176376,1745773850550,-480.0,0.00019999,2]
[359176377,1745773850560,-63.67683337,0.00019999,2]
[359176378,1745773850576,-18132.88316663,0.00019999,2]
[359176379,1745773850586,-6887.74625662,0.00019999,2]
[359176380,1745773850597,-4576.73836545,0.00019999,2]
[359176381,1745773850610,-1400.0,0.00019999,2]
[359176382,1745773850622,-5332.07537793,0.00019999,2]
[359176383,1745773850634,-480.51,0.00019999,2]
[359176384,1745773850643,-18196.56,0.00019999,2]
[359176385,1745773850655,-18196.56,0.00019999,2]
[359176386,1745773850664,-18196.56,0.00019999,2]
[359176387,1745773850673,-18196.56,0.00019999,2]
[359176388,1745773850682,-500.0,0.00019999,2]
[359176389,1745773850692,-18196.56,0.00019999,2]
[359176390,1745773850701,-18196.56,0.00019999,2]
[359176391,1745773850710,-18196.56,0.00019999,2]
[359176392,1745773850719,-18196.71419956,0.00019999,2]
[359176393,1745773850729,-522.59,0.00019999,2]
[359176394,1745773850738,-480.0,0.00019999,2]
[359176395,1745773850747,-480.0,0.00019999,2]
[359176396,1745773850757,-225.34,0.00019999,2]
[359176397,1745773850767,-480.0,0.00019999,2]
[359176398,1745773850775,-218.95,0.00019999,2]
[359176399,1745773850785,-480.0,0.00019999,2]
[359176400,1745773850794,-480.0,0.00019999,2]
[359176401,1745773850804,-480.0,0.00019999,2]
[359176402,1745773850814,-480.0,0.00019999,2]
[359176403,1745773850824,-480.0,0.00019999,2]
[359176404,1745773850835,-480.0,0.00019999,2]
[359176405,1745773850846,-480.0,0.00019999,2]
[359176406,1745773850856,-480.0,0.00019999,2]
[359176407,1745773850865,-480.0,0.00019999,2]
[359176408,1745773850876,-480.0,0.00019999,2]
[359176409,1745773850887,-607.17,0.00019999,2]
[359176410,1745773850899,-278.06,0.00019999,2]
[359176411,1745773850910,-500.0,0.00019999,2]
[359176412,1745773850919,-500.0,0.00019999,2]
[359176413,1745773850928,-500.0,0.00019999,2]
[359176414,1745773850937,-480.0,0.00019999,2]
[359176415,1745773850950,-576.23412711,0.00019999,2]
[359176416,1745773850960,-480.0,0.00019999,2]
[359176417,1745773850970,-480.0,0.00019999,2]
[359176418,1745773850979,-480.0,0.00019999,2]
[359176419,1745773850988,-480.0,0.00019999,2]
[359176420,1745773850998,-298.15704129,0.00019999,2]
[359176421,1745773851008,-500.0,0.00019999,2]
[359176422,1745773851019,-500.0,0.00019999,2]
[359176423,1745773851031,-500.0,0.00019999,2]
[359176424,1745773851043,-614.21,0.00019999,2]
[359176425,1745773851054,-500.0,0.00019999,2]
[359176426,1745773851063,-480.0,0.00019999,2]
[359176427,1745773851072,-480.0,0.00019999,2]
[359176428,1745773851082,-200.83,0.00019999,2]
[359176429,1745773851091,-500.0,0.00019999,2]
[359176430,1745773851101,-500.0,0.00019999,2]
[359176431,1745773851112,-480.0,0.00019999,2]
[359176432,1745773851123,-602.5,0.00019999,2]
[359176433,1745773851132,-500.0,0.00019999,2]
[359176434,1745773851142,-500.0,0.00019999,2]
[359176435,1745773851151,-500.0,0.00019999,2]
[359176436,1745773851161,-480.0,0.00019999,2]
[359176437,1745773851171,-480.0,0.00019999,2]
[359176438,1745773851181,-480.0,0.00019999,2]
[359176439,1745773851191,-480.0,0.00019999,2]
[359176440,1745773851201,-611.21087627,0.00019999,2]
[359176441,1745773851212,-480.0,0.00019999,2]
[359176442,1745773851222,-480.0,0.00019999,2]
[359176443,1745773851233,-480.0,0.00019999,2]
[359176444,1745773851242,-480.0,0.00019999,2]
[359176445,1745773851252,-480.0,0.00019999,2]
[359176446,1745773851262,-480.0,0.00019999,2]
[359176447,1745773851271,-228.09,0.00019999,2]
[359176448,1745773851282,-480.0,0.00019999,2]
[359176449,1745773851294,-480.0,0.00019999,2]
[359176450,1745773851303,-593.05,0.00019999,2]
[359176451,1745773851314,-480.0,0.00019999,2]
[359176452,1745773851323,-376.81,0.00019999,2]
[359176453,1745773851332,-480.0,0.00019999,2]
[359176454,1745773851342,-285.99,0.00019999,2]
[359176455,1745773851351,-500.0,0.00019999,2]
[359176456,1745773851362,-480.0,0.00019999,2]
[359176457,1745773851371,-500.0,0.00019999,2]
[359176458,1745773851381,-480.0,0.00019999,2]
[359176459,1745773851390,-480.0,0.00019999,2]
[359176460,1745773851400,-480.0,0.00019999,2]
[359176461,1745773851409,-480.0,0.00019999,2]
[359176462,1745773851419,-364.45,0.00019999,2]
[359176463,1745773851428,-480.0,0.00019999,2]
[359176464,1745773851438,-480.0,0.00019999,2]
[359176465,1745773851448,-515.35,0.00019999,2]
[359176466,1745773851457,-480.0,0.00019999,2]
[359176467,1745773851467,-480.0,0.00019999,2]
[359176468,1745773851477,-480.0,0.00019999,2]
[359176469,1745773851487,-480.0,0.00019999,2]
[359176470,1745773851496,-500.0,0.00019999,2]
[359176471,1745773851506,-369.89,0.00019999,2]
[359176472,1745773851516,-480.0,0.00019999,2]
[359176473,1745773851525,-480.0,0.00019999,2]
[359176474,1745773851536,-480.0,0.00019999,2]
[359176475,1745773851546,-480.0,0.00019999,2]
[359176476,1745773851555,-480.0,0.00019999,2]
[359176477,1745773851565,-480.0,0.00019999,2]
[359176478,1745773851574,-480.0,0.00019999,2]
[359176479,1745773851584,-480.0,0.00019999,2]
[359176480,1745773851594,-480.0,0.00019999,2]
[359176481,1745773851603,-500.0,0.00019999,2]
[359176482,1745773851613,-480.0,0.00019999,2]
[359176483,1745773851623,-480.0,0.00019999,2]
[359176484,1745773851632,-480.0,0.00019999,2]
[359176485,1745773851642,-480.0,0.00019999,2]
[359176486,1745773851652,-480.0,0.00019999,2]
[359176487,1745773851661,-419.77810391,0.00019999,2]
[359176488,1745773851671,-480.0,0.00019999,2]
[359176489,1745773851680,-235.3,0.00019999,2]
[359176490,1745773851690,-523.49,0.00019999,2]
[359176491,1745773851699,-554.07,0.00019999,2]
[359176492,1745773851708,-232.10000001,0.00019999,2]
[359176493,1745773851717,-198.69351155,0.00019999,2]
[359176494,1745773851727,-480.0,0.00019999,2]
[359176495,1745773851736,-480.0,0.00019999,2]
[359176496,1745773851745,-521.96,0.00019999,2]
[359176497,1745773851754,-253.04,0.00019999,2]
[359176498,1745773851764,-500.0,0.00019999,2]
[359176499,1745773851773,-480.0,0.00019999,2]
[359176500,1745773851783,-480.0,0.00019999,2]
[359176501,1745773851793,-480.0,0.00019999,2]
[359176502,1745773851803,-480.0,0.00019999,2]
[359176503,1745773851812,-480.0,0.00019999,2]
[359176504,1745773851822,-480.0,0.00019999,2]
[359176505,1745773851831,-480.0,0.00019999,2]
[359176506,1745773851841,-520.0,0.00019999,2]
[359176507,1745773851850,-480.0,0.00019999,2]
[359176508,1745773851860,-480.0,0.00019999,2]
[359176509,1745773851870,-480.0,0.00019999,2]
[359176510,1745773851879,-500.0,0.00019999,2]
[359176511,1745773851889,-480.0,0.00019999,2]
[359176512,1745773851898,-480.0,0.00019999,2]
[359176513,1745773851907,-500.0,0.00019999,2]
[359176514,1745773851917,-480.0,0.00019999,2]
[359176515,1745773851926,-480.0,0.00019999,2]
[359176516,1745773851936,-480.0,0.00019999,2]
[359176517,1745773851945,-480.0,0.00019999,2]
[359176518,1745773851957,-480.0,0.00019999,2]
[359176519,1745773851966,-400.0,0.00019999,2]
[359176520,1745773851976,-500.0,0.00019999,2]
[359176521,1745773851985,-500.0,0.00019999,2]
[359176522,1745773851995,-480.0,0.00019999,2]
[359176523,1745773852005,-480.0,0.00019999,2]
[359176524,1745773852014,-480.0,0.00019999,2]
[359176525,1745773852025,-480.0,0.00019999,2]
[359176526,1745773852034,-500.0,0.00019999,2]
[359176527,1745773852044,-480.0,0.00019999,2]
[359176528,1745773852054,-480.0,0.00019999,2]
[359176529,1745773852063,-480.0,0.00019999,2]
[359176530,1745773852072,-159.41,0.00019999,2]
[359176531,1745773852081,-608.32,0.00019999,2]
[359176532,1745773852090,-500.0,0.00019999,2]
[359176533,1745773852100,-500.0,0.00019999,2]
[359176534,1745773852109,-480.0,0.00019999,2]
[359176535,1745773852118,-480.0,0.00019999,2]
[359176536,1745773852127,-500.0,0.00019999,2]
[359176537,1745773852136,-500.0,0.00019999,2]
[359176538,1745773852145,-480.0,0.00019999,2]
[359176539,1745773852155,-480.0,0.00019999,2]
[359176540,1745773852164,-480.0,0.00019999,2]
[359176541,1745773852174,-480.0,0.00019999,2]
[359176542,1745773852183,-480.0,0.00019999,2]
[359176543,1745773852193,-480.0,0.00019999,2]
[359176544,1745773852202,-480.0,0.00019999,2]
[359176545,1745773852211,-500.0,0.00019999,2]
[359176546,1745773852221,-480.0,0.00019999,2]
[359176547,1745773852230,-480.0,0.00019999,2]
[359176548,1745773852239,-480.0,0.00019999,2]
[359176549,1745773852249,-480.0,0.00019999,2]
[359176550,1745773852258,-480.0,0.00019999,2]
[359176551,1745773852267,-505.7296571,0.00019999,2]
[359176552,1745773852277,-507.49,0.00019999,2]
[359176553,1745773852287,-500.0,0.00019999,2]
[359176554,1745773852297,-480.0,0.00019999,2]
[359176555,1745773852306,-480.0,0.00019999,2]
[359176556,1745773852316,-480.0,0.00019999,2]
[359176557,1745773852325,-480.0,0.00019999,2]
[359176558,1745773852335,-480.0,0.00019999,2]
[359176559,1745773852345,-480.0,0.00019999,2]
[359176560,1745773852355,-480.0,0.00019999,2]
[359176561,1745773852365,-480.0,0.00019999,2]
[359176562,1745773852375,-480.0,0.00019999,2]
[359176563,1745773852384,-480.0,0.00019999,2]
[359176564,1745773852394,-480.0,0.00019999,2]
[359176565,1745773852404,-563.62,0.00019999,2]
[359176566,1745773852413,-480.0,0.00019999,2]
[359176567,1745773852422,-480.0,0.00019999,2]
[359176568,1745773852432,-480.0,0.00019999,2]
[359176569,1745773852442,-480.0,0.00019999,2]
[359176570,1745773852452,-480.0,0.00019999,2]
[359176571,1745773852461,-480.0,0.00019999,2]
[359176572,1745773852471,-326.43,0.00019999,2]
[359176573,1745773852481,-500.0,0.00019999,2]
[359176574,1745773852490,-480.0,0.00019999,2]
[359176575,1745773852500,-480.0,0.00019999,2]
[359176576,1745773852509,-480.0,0.00019999,2]
[359176577,1745773852518,-480.0,0.00019999,2]
[359176578,1745773852528,-164.55,0.00019999,2]
[359176579,1745773852538,-56491.82871425,0.0002,2]
[359176580,1745773852547,-33444.40904955,0.0002,2]
[359176581,1745773852562,-604.79948188,0.0002,2]
[359176582,1745773852575,-49316.87042328,0.0002,2]
[359176583,1745773852586,-1050.69562888,0.0002,2]
[359176584,1745773852614,-18402.17,0.0002,2]
[359176585,1745773852625,-1059.35439005,0.0002,2]
[359176586,1745773852636,-166574.62476376,0.0002,2]
[359176587,1745773852647,-479.12580093,0.0002,2]
[359176588,1745773852658,-4221.0,0.0002,2]
[359176589,1745773852669,-281.47742539,0.0002,2]
[359176590,1745773852684,-25104.56879144,0.0002,2]
[359176591,1745773855280,200.0,0.00019284,2]
[359176592,1745774122850,166.64,0.00019063,2]
[359176593,1745774220231,370.95,0.00017109,2]
[359176594,1745774222658,-255.39695193,0.00019373,2]
[359176595,1745774419825,150.0,0.00018951,7]
[359176596,1745774436320,62380.89,0.00018956,2]
[359176597,1745774720573,10032.08609224,9e-05,2]
[359176598,1745774728630,784.02750453,0.00011,2]
[359176599,1745774729276,-115.55304807,0.00019373,2]
[359176601,1745774756095,476.05986903,6.94e-05,2]
[359176608,1745774903471,327.05,0.00018933,2]
[359176609,1745774917278,200.0,0.00018951,2]
[359176615,1745775003045,408.41,0.00019,2]
[359176616,1745775024904,7959.68,0.00018965,2]
[359176624,1745775031550,-166.68,0.00019481,2]
[359176625,1745775031560,-200.0,0.00019487,2]
[359176626,1745775031570,-842.4742531,0.00019493,2]
[359176627,1745775031582,-357.5257469,0.00019493,2]
[359176628,1745775031591,-242.4742531,0.00019543,2]
[359176629,1745775031617,-42.35201485,0.00019543,2]
[359176630,1745775031627,-300.0,0.00019642,2]
[359176631,1745775031637,-178.23952108,0.00019643,2]
[359176632,1745775031659,-466.39901283,0.00019643,2]
[359176633,1745775031669,-150.2561415,0.00019799,2]
[359176634,1745775031679,-1306.95217794,0.00019862,2]
[359176635,1745775031688,-1306.95217789,0.00019866,2]
[359176636,1745775031697,-1000.0,0.00019899,2]
[359176637,1745775031706,-1316.52511726,0.00019899,2]
[359176638,1745775031716,-1316.52511726,0.00019899,2]
[359176639,1745775031724,-1316.52511726,0.00019899,2]
[359176640,1745775031734,-1316.52511726,0.00019899,2]
[359176641,1745775031743,-1316.52511726,0.00019899,2]
[359176642,1745775031752,-1316.52511726,0.000199,2]
[359176643,1745775031761,-334.49166304,0.000199,2]
[359176644,1745775031770,-153.57,0.000199,2]
[359176645,1745775031779,-327.25,0.000199,2]
[359176646,1745775031788,-304.12,0.000199,2]
[359176647,1745775031797,-150.0,0.000199,2]
[359176648,1745775031806,-330.29034848,0.000199,2]
[359176649,1745775031818,-35.76965152,0.000199,2]
[359176650,1745775031827,-150.0,0.000199,2]
[359176652,1745775031835,-150.0,0.000199,2]
[359176654,1745775031845,-134.17092358,0.000199,2]
[359176657,1745775031856,-277.32374385,0.000199,2]
[359176658,1745775031865,-257.56134344,0.000199,3]
[359176660,1745775031874,-150.0,0.000199,2]
[359176662,1745775031883,-207.4,0.00019953,2]
[359176664,1745775031892,-164.10491271,0.00019954,2]
[359176666,1745775031903,-504.54694486,0.00019954,2]
[359176668,1745775031913,-166.28146853,0.00019954,2]
[359176670,1745775031921,-164.90040018,0.00019961,2]
[359176672,1745775031931,-166.06543585,0.00019961,2]
[359176674,1745775031940,-154.65286004,0.00019961,2]
[359176676,1745775031950,-262.01599656,0.00019961,2]
[359176678,1745775031959,-229.167512,0.00019961,2]
[359176680,1745775031968,-534.0,0.00019961,2]
[359176683,1745775031978,-500.0,0.00019962,2]
[359176685,1745775031987,-500.0,0.00019962,2]
[359176687,1745775031996,-500.0,0.00019962,2]
[359176688,1745775032005,-500.0,0.00019962,2]
[359176689,1745775032014,-500.0,0.00019962,2]
[359176690,1745775032023,-376.02167723,0.00019962,2]
[359176691,1745775032032,-500.0,0.00019962,2]
[359176692,1745775032042,-500.0,0.00019962,2]
[359176693,1745775032051,-500.0,0.00019962,2]
[359176694,1745775032060,-500.0,0.00019962,2]
[359176695,1745775032069,-480.0,0.00019962,2]
[359176696,1745775032078,-202.23648594,0.00019962,2]
[359176697,1745775032087,-496.8700802,0.00019962,2]
[359176698,1745775032096,-500.0,0.00019962,2]
[359176699,1745775032105,-500.0,0.00019962,2]
[359176700,1745775032115,-500.0,0.00019962,2]
[359176701,1745775032124,-500.0,0.00019962,2]
[359176702,1745775032133,-500.0,0.00019962,2]
[359176703,1745775032142,-93.3750471,0.00019962,2]
[359176704,1745775032156,-406.6249529,0.00019962,2]
[359176705,1745775032166,-115.37530562,0.00019962,2]
[359176706,1745775032177,-466.81823838,0.00019962,2]
[359176707,1745775032186,-500.0,0.00019962,2]
[359176708,1745775032195,-500.0,0.00019962,2]
[359176709,1745775032204,-480.0,0.00019962,2]
[359176710,1745775032214,-500.0,0.00019962,2]
[359176711,1745775032224,-500.0,0.00019962,2]
[359176712,1745775032234,-500.0,0.00019962,2]
[359176713,1745775032243,-480.0,0.00019962,2]
[359176714,1745775032254,-500.0,0.00019962,2]
[359176715,1745775032265,-500.0,0.00019962,2]
[359176716,1745775032274,-557.17458355,0.00019962,2]
[359176717,1745775032283,-500.0,0.00019962,2]
[359176718,1745775032293,-500.0,0.00019962,2]
[359176719,1745775032303,-500.0,0.00019962,2]
[359176720,1745775032312,-500.0,0.00019962,2]
[359176721,1745775032321,-514.13294316,0.00019962,2]
[359176722,1745775032331,-480.0,0.00019962,2]
[359176723,1745775032340,-500.0,0.00019962,2]
[359176724,1745775032349,-500.0,0.00019962,2]
[359176725,1745775032359,-480.0,0.00019962,2]
[359176726,1745775032369,-500.0,0.00019962,2]
[359176727,1745775032378,-514.75461333,0.00019962,2]
[359176728,1745775032388,-500.0,0.00019962,2]
[359176729,1745775032398,-500.0,0.00019962,2]
[359176730,1745775032411,-500.0,0.00019962,2]
[359176731,1745775032420,-223.04765938,0.00019962,2]
[359176732,1745775032430,-500.0,0.00019962,2]
[359176733,1745775032440,-500.0,0.00019962,2]
[359176734,1745775032451,-500.0,0.00019962,2]
[359176735,1745775032460,-500.0,0.00019962,2]
[359176736,1745775032470,-500.0,0.00019962,2]
[359176737,1745775032480,-500.0,0.00019962,2]
[359176738,1745775032491,-500.0,0.00019962,2]
[359176739,1745775032500,-500.0,0.00019962,2]
[359176740,1745775032509,-500.0,0.00019962,2]
[359176741,1745775032518,-500.0,0.00019962,2]
[359176742,1745775032527,-539.65296798,0.00019962,2]
[359176743,1745775032536,-480.0,0.00019962,2]
[359176744,1745775032546,-525.90395299,0.00019962,2]
[359176745,1745775032555,-500.0,0.00019962,2]
[359176746,1745775032564,-500.0,0.00019962,2]
[359176747,1745775032574,-549.18847323,0.00019962,2]
[359176748,1745775032583,-621.68,0.00019962,2]
[359176749,1745775032592,-500.0,0.00019962,2]
[359176750,1745775032602,-505.14248767,0.00019962,2]
[359176751,1745775032612,-500.0,0.00019962,2]
[359176752,1745775032621,-500.0,0.00019962,2]
[359176753,1745775032630,-510.94543984,0.00019962,2]
[359176754,1745775032640,-501.40066065,0.00019962,2]
[359176755,1745775032649,-500.0,0.00019962,2]
[359176756,1745775032659,-500.0,0.00019962,2]